Cogmind - Beta 17 @@@ ROGUE MODE // 2026.07.01 @ 21:38:49 Player: opdo Result: Destroyed by H-55 Commando with Gauss Rifle Performance ------------- Evolutions (0) 0 Regions Visited (1) 200 Robots Destroyed (17) 85 Value Destroyed (370) 370 Prototype IDs (1) 20 Alien Tech Used (0) 0 Bonus (7100) 7100 TOTAL SCORE: 7775 Bonus ------- Prayed to X0-1V1 5000 Major X0-1V1 Interference 2100 Cogmind --------- Core Integrity 0/170 Matter 230/300 Energy 240/250 System Corruption 0% Temperature Warm (112) Movement Walking (190) Ox1 Location -10/Materials Parts ------- > --- POWER (1) -------- Ion Engine > --- PROPULSION (2) --- Aluminum Leg > --- UTILITY (2) ------ Small Storage Unit Core Shielding > --- WEAPON (2) ------- Medium Laser Small Laser > --- INVENTORY (8) ---- Aluminum Leg Aluminum Leg Seismic Detector Small Laser Light Cannon Grenade Launcher Mining Laser Peak State ------------ > --- POWER ------------ Ion Engine > --- PROPULSION ------- Aluminum Leg Aluminum Leg > --- UTILITY ---------- Small Storage Unit X0-1V1's Piety Tracker > --- WEAPON ----------- Medium Laser Small Laser > --- INVENTORY -------- Aluminum Leg Aluminum Leg Improved Terrain Scanner Core Shielding Assault Rifle Light Cannon Grenade Launcher Mining Laser [Rating: 20] Favorites ----------- Power Ion Engine Engine Ion Engine Propulsion Aluminum Leg Leg Aluminum Leg Utility Small Storage Unit Device Seismic Detector Storage Small Storage Unit Protection Core Shielding Weapon Medium Laser Energy Gun Medium Laser Ballistic Gun Assault Rifle Launcher Grenade Launcher Build | -11 -10 ------- Run | Yrd Mat Slots Evolved . | . . Power . | . . Propulsion . | . . Utility . | . . Weapon . | . . Parts Attached 18 | 7 11 Power 3 | 1 2 Engine 3 | 1 2 Core . | . . Reactor . | . . Propulsion 5 | 2 3 Treads . | . . Leg 5 | 2 3 Wheel . | . . Hover . | . . Flight . | . . Utility 4 | 2 2 Device 2 | 1 1 Storage 1 | 1 . Processor . | . . Hackware . | . . Protection 1 | . 1 Artifact . | . . Weapon 6 | 2 4 Energy Gun 4 | 1 3 Energy Cannon . | . . Ballistic Gun 1 | 1 . Ballistic Cannon . | . . Launcher 1 | . 1 Special Weapon . | . . Impact Weapon . | . . Slashing Weapon . | . . Piercing Weapon . | . . Special Melee Weapon . | . . Unidentified Prototypes 1 | . 1 Parts Lost 3 | . 3 Power 1 | . 1 Propulsion 1 | . 1 Utility 1 | . 1 Weapon . | . . Highest Loss Streak 2 | . 2 To Critical Strikes . | . . Average Backups 7 | 2 7 Power . | . . Propulsion 2 | 1 2 Utility 1 | . 1 Weapon 3 | . 3 Tool/Special . | . . Unused Backups 8 | . 8 Power . | . . Propulsion 4 | . 4 Utility 1 | . 1 Weapon 3 | . 3 Tool/Special . | . . Average Slot Usage (%) 99 | . 99 Engine 13 | . 13 Leg 28 | . 28 Device 13 | . 13 Storage 14 | . 14 Energy Gun 26 | . 26 Ballistic Gun 1 | . 1 Peak Build Rating 20 | 7 20 Average Rating 10 | 5 11 On Entrance 3 | . 7 Avg Prop Armor Cover (%) . | . . Naked Turns . | . . Heaviest Build 15 | 15 15 Greatest Support 20 | 20 20 Greatest Overweight (x) 1 | 1 . Average Overweight (x) . | . . Largest Inventory Capacity 8 | 8 8 Average Capacity 7 | 7 8 Most Carried 8 | 4 8 Average Carried 7 | 2 7 Final Capacity 8 | 8 8 Final Carried 7 | 4 7 Class Distribution -------------------- 66% | Scavenger-Mutant 33% | Mutant Dominant Class ---------------- Scavenger-Mutant | -10/Materials Resources | -11 -10 ----------- Run | Yrd Mat Matter Collected 397 | 161 236 Remotely . | . . Salvage Created 436 | 25 411 Parts 41 | 7 34 Haulers Intercepted . | . . Recyclers Shooed 1 | 1 . Parts Field Recycled . | . . Retrieved Matter . | . . Parts Self-Destructed . | . . Prevented . | . . Parts Restored . | . . Kills | -11 -10 ------- Run | Yrd Mat Combat Hostiles Destroyed 13 | . 13 Guns 10 | . 10 AOE 2 | . 2 Classes Destroyed 5 | 1 4 Builder 1 | . 1 Tunneler 2 | 2 . Operator 1 | . 1 Swarmer 5 | . 5 Grunt 8 | . 8 Best Kill Streak 5 | 1 5 Combat Bots Only 5 | . 5 Max Kills in Single Turn 3 | 1 3 Gunslinging . | . . Exploded 2 | . 2 Melee . | . . Uniques/NPCs Destroyed . | . . Combat | -11 -10 -------- Run | Yrd Mat Hostile Shots Fired 94 | . 94 Missed 21 | . 21 Hits 73 | . 73 Projectile 73 | . 73 Critical Strikes 1 | . 1 Damage Taken 862 | . 862 Core 252 | . 252 Absorbed by Shields . | . . Redirected to Shielding 6 | . 6 Core Remaining (%) 100 | 100 . Volleys Fired 42 | 5 37 Largest 2 | 2 2 Hottest 90 | 70 90 Shots Fired 84 | 10 74 Gun 80 | 10 70 Cannon . | . . Launcher 4 | . 4 Special . | . . Kinetic 17 | 5 12 Thermal 63 | 5 58 Explosive 4 | . 4 Electromagnetic . | . . Robot Hit Streak 9 | 4 9 Robot Miss Streak 3 | 2 3 Penetration Max . | . . Secondary Targets 2 | . 2 Max Gunslinging Chain 1 | . 1 Shots Hit Robots 57 | 6 51 Core Hits 30 | 2 28 Critical Kills . | . . Critical Parts Destroyed . | . . Critical Strikes 5 | 1 4 Burn 5 | 1 4 Melee Attacks . | . . Impact . | . . Slashing . | . . Piercing . | . . Sneak Attacks . | . . Combat Hostiles . | . . Follow-up Attacks . | . . Damage Inflicted 935 | 77 858 Guns 665 | 77 588 Cannons . | . . Explosions 260 | . 260 Melee . | . . Ramming 10 | . 10 Kinetic 88 | 28 60 Thermal 577 | 49 528 Explosive 260 | . 260 Electromagnetic . | . . Impact . | . . Slashing . | . . Piercing . | . . Highest Corruption . | . . Average Corruption . | . . Corruption Purged . | . . Corruption Blocked . | . . Overload Shots . | . . Overflow Damage . | . . Projectiles . | . . Explosions . | . . Melee . | . . Knockbacks . | . . Impact . | . . Kinetic . | . . Secondary . | . . Self-Inflicted Damage . | . . Shots . | . . Rammed . | . . Targets Rammed 3 | . 3 Kicked 3 | . 3 Crushed . | . . Highest Temperature 336 | 18 336 Average Temperature 94 | 9 102 Received Heat Transfer 270 | . 270 Siege Activations . | . . Martial Activations . | . . Shielding Activations . | . . Robots Disrupted . | . . Combat Hostiles . | . . Robots Corrupted . | . . Combat Hostiles . | . . Parts Fried . | . . Impact Corruptions . | . . Robots Melted 1 | . 1 Combat Hostiles 1 | . 1 Parts Melted 4 | . 4 Heat Transferred 1954 | 222 1732 Parts Sabotaged . | . . Parts Stolen . | . . Parts Stripped . | . . Power Chain Reactions . | . . Alert | -11 -10 ------- Run | Yrd Mat Maximum Alert Level . | . . Low Security (%) 100 | 100 100 Level 1 . | . . Level 2 . | . . Level 3 . | . . Level 4 . | . . Level 5 . | . . High Security . | . . Max Security . | . . Peak Influence 136 | 5 136 Initial . | . . Average 54 | . 60 Influence Increases 383 | 10 373 Destroy 0b10 Robot/C 260 | . 260 Destroy 0b10 Robot/NC 20 | 10 10 Destroy Leader 50 | . 50 Successful Hack 10 | . 10 Destroy Structure 28 | . 28 Lose Combat Pursuer 15 | . 15 Influence Decreases 324 | 10 314 Time Decay 312 | 10 302 Lost Part 12 | . 12 Squads Dispatched 3 | . 3 Investigation . | . . Extermination . | . . Reinforcement 3 | . 3 Assault . | . . Garrison . | . . Intercept . | . . Searches Triggered . | . . Construction Impeded . | . . Haulers Reinforced . | . . Active Scanning Responses . | . . Cargo Convoy Interrupts . | . . Stealth | -11 -10 --------- Run | Yrd Mat Distress Signals . | . . Communications Jammed . | . . Distress Signals . | . . Times Spotted 26 | . 26 Peak Tracking Total 7 | . 7 Tactical Retreats 1 | . 1 Traps | -11 -10 ------- Run | Yrd Mat Traps Triggered . | . . Indirectly . | . . Trap Hack Attempts . | . . Triggered . | . . Disarmed . | . . Reprogrammed . | . . Reused . | . . Traps Extracted . | . . Installed . | . . Triggered . | . . Machines | -11 -10 ---------- Run | Yrd Mat Machines Disabled . | . . Max in Single Turn . | . . Machines Repaired . | . . Machines Dismantled . | . . Machines Sabotaged . | . . Overloaded Fab Kills . | . . Hacking | -11 -10 --------- Run | Yrd Mat Machines Accessed 2 | . 2 Terminals 2 | . 2 Fabricators . | . . Repair Stations . | . . Recycling Units . | . . Scanalyzers . | . . Garrison Access . | . . Total Hacks 5 | . 5 Successful 2 | . 2 Failed 3 | . 3 Catastrophic . | . . Database Lockouts . | . . Manual 7 | . 7 Terminals 5 | . 5 Fabricators . | . . Repair Stations . | . . Recycling Units . | . . Scanalyzers . | . . Garrison Access . | . . Terminal Hacks . | . . Fabricator Hacks . | . . Repair Station Hacks . | . . Recycling Unit Hacks . | . . Scanalyzer . | . . Garrison Access Hacks . | . . Unauthorized Hacks 2 | . 2 Terminals 2 | . 2 Assimilate 1 | . 1 Skim 1 | . 1 Fabricators . | . . Repair Stations . | . . Recycling Units . | . . Scanalyzers . | . . Garrison Access . | . . Data Cores Recovered . | . . Used . | . . Hacking Detections 2 | . 2 Full Trace Events . | . . Feedback Events . | . . Feedback Blocked . | . . Robot Schematics Acquired . | . . Robots Built . | . . Authchips . | . . Time . | . . Total Robot Build Rating . | . . Part Schematics Acquired . | . . Parts Built . | . . Authchips . | . . Time . | . . Total Part Build Rating . | . . Part Studies Acquired . | . . Parts Repaired . | . . Time . | . . Parts Recycled . | . . Recycled Matter . | . . Retrieved Matter . | . . Retrieved Components . | . . Parts Scanalyzed . | . . Part Schematics Acquired . | . . Parts Damaged . | . . Bothacking | -11 -10 ------------ Run | Yrd Mat Used RIF Installer . | . . Robots Hacked . | . . Non-combat . | . . Combat . | . . Robot Hacks Applied . | . . Relay Couplers Released . | . . Fabnet Peak Effective % . | . . Robots Rewired . | . . Allies Hacked . | . . Hacks Repelled . | . . Allies | -11 -10 -------- Run | Yrd Mat Total Allies . | . . Largest Group . | . . Highest-Rated Group . | . . Highest-Rated Ally . | . . Total Orders . | . . Ally Attacks . | . . Total Damage . | . . Kills . | . . Allies Corrupted . | . . Allies Melted . | . . X0-1V1 Amusement Gains 15 | . 15 Good Acts 2 | . 2 Bad Acts 8 | . 8 Intel | -11 -10 ------- Run | Yrd Mat Active Infowar (turns) 493 | 8 485 Seismic 493 | 8 485 Robot Analysis Total . | . . Derelict Logs Recovered . | . . Drone Launches . | . . Drone Recoveries . | . . Exploration | -11 -10 ------------- Run | Yrd Mat Turns Passed 828 | 81 747 Spaces Moved 419 | 47 372 Core 7 | 7 . Treads . | . . Legs 412 | 40 372 Wheels . | . . Hover . | . . Flight . | . . Fastest Speed 50 | 50 120 Average Speed 118 | 110 120 Slowest Speed 120 | 120 120 Overloaded Moves . | . . Propulsion Burnouts . | . . Robots Hopped . | . . Potential Cave-ins . | . . Cave-ins Triggered . | . . Exploration Rate (%) 33 | 3 64 Regions Visited 1 Branch Regions . Pre-discovered Areas . | . . Known Exits Taken . | . . Unknown Exits Taken 1 | 1 . Scrap Searched . | . . Spaces Dug . | . . Terrain Destroyed 34 | . 34 Melee . | . . Projectile . | . . AOE 34 | . 34 Terrain Rammed . | . . Walls Destroyed . | . . Machines Disabled . | . . Actions | -11 -10 --------- Run | Yrd Mat Total 663 | 62 601 Wait 153 | . 153 Move 418 | 46 372 Hop . | . . Pick Up 15 | 4 11 Fast Attach 9 | 7 2 Attach 1 | . 1 Detach . | . . Swap 9 | . 9 Drop 13 | . 13 Fire 42 | 5 37 Melee . | . . Ram . | . . Kick 3 | . 3 Crush . | . . Escape Stasis . | . . Rewire . | . . Trap . | . . Miscellaneous . | . . Route ------- -11/Scrapyard -10/Materials (discovered 3 exits: [*Mat x2] / [*Sub]) History --------- Turn | Location | Event 5 | -11/Scrapyard | Discovered new exit (range 16) 82 | -11/Scrapyard | Entered Materials 304 | -10/Materials | Discovered new exit (range 14) 429 | -10/Materials | Discovered new exit (range 8) 558 | -10/Materials | Build established: Scavenger-Mutant 566 | -10/Materials | Prayed at D.C.S.S. Altar Unit 737 | -10/Materials | X0-1V1 enhanced Transport squad support 786 | -10/Materials | Discovered new exit (range 5) 792 | -10/Materials | X0-1V1 announced a LAN party 802 | -10/Materials | Melee accuracy permanently improved by X0-1V1 (+8%; -80 max core) 806 | -10/Materials | X0-1V1 sent you into danger 818 | -10/Materials | Core integrity fell below 50% 827 | -10/Materials | Core integrity fell below 20% 829 | -10/Materials | Destroyed by H-55 Commando with Gauss Rifle Last Messages --------------- G-34 Mercenary sparkles and shines. O-16 Technician sparkles and shines. 00818_ R-06 Scavenger collects Lgt. Ion Engine. 00819_ U-05 Engineer lays Concrete. 00819_ K-01 Serf collects debris. 00820_ The unstable cave ceiling collapses. 00820_ U-05 Engineer lays Concrete. 00820_ O-16 Technician destroyed. 00822_ U-05 Engineer lays Concrete. 00822_ R-06 Scavenger collects Lgt. Ion Engine. 00822_ K-01 Serf collects debris. 00822_ U-05 Engineer lays Concrete. 00823_ Penetrated by Slug. 00823_ U-05 Engineer lays Concrete. 00826_ K-01 Serf collects debris. 00826_ U-05 Engineer lays Concrete. 00826_ U-05 Engineer builds a Wall. 00828_ Aluminum Leg destroyed. 00829_ Penetrated by Slug. 00829_ X0-1V1 snickers! Map ----- +----------------------------------------------------+ | ""T"" ##" = # #???????????????????????????????? | | ## # #???????????????????????????????? | | ## = # #???????????????????????????????? | | #####??# # #???????????????????????????????? | | ##########+### #####???????????????????????????? | | ????????????????????? | | ????????????????????? | | ????????????????????? | | ###+###### ############????????????????????? | | # ???# #???????????????????????????????? | | # """?# #???????????????????????????????? | | # """ # #???????????????????????????????? | | # """ # #???????????????????????????????? | | # # +???????????????????????????????? | | # !! """ # #???????????????????????????????? | | # !! """ # ##???????????????????????????????? | | # !! """?# #????????????????????????????????? | | # ??# #????????????????????????????????? | | ######???# #?????######?????????????????????? | | #######??# #????##!!!!##????????????????????? | | ?????#! !#??????##????????????? | | #######??????????##### #???? ???????????? | | ????????????? ## # = ### ???????????? | | ####???????? % ??????????? | | ####### %k ^ ??????????? | | # aua s@ u ??????????? | | + #????????# ## g #### #??????????? | | # #????????###### #???????????????????? | | # #??####???????#^ r #???????????????????? | | # #? ????????# #??????????????????? | | # #?""" ????????# #??????????????????? | | # # """ ""??????# < h $ ??????????????????? | | #### # """ """ ????# << * T?????????????????? | | #### + #???# << h ????????????????? | | # # [ #???# # ????????????????? | | + # #???# ?? # ???????????????? | | # #? #???# ???## #? "????????????????? | | ???# #?#############+##??? #???????????????????? | | ???# ######## #????????????????????????? | | ???# # #????????????????????????? | | ???# # #????????????????????????? | | ???# # +????????????????????????? | | ??###+##### + #????????????????????????? | | ### ## # #????????????????????????? | | # """ ## # #????????????????????????? | | " # """ ## # #????????????????????????? | | " # """ ## ###########????????????????????????? | | " # + #??????????????????????????????????? | | " # """ ## #??????????????????????????????????? | | " # """ ## #??????????????????????????????????? | +----------------------------------------------------+ Best States ------------- Heat Dissipation 25 Energy Generation 10 Energy Capacity 250 Matter Stores 300 Matter Capacity 300 Sight Range 16 Terrain Scan Density 10 Evasion (%) 55 Item Schematics ----------------- None Robot Schematics ------------------ None Fabricated ------------ Nothing Repaired ---------- Nothing Studied --------- None Alien Tech Used ----------------- None Achievements -------------- None Challenges ------------ None Game ------ Seed ThunderPitchforkEdition Manual? 0 Play Time 00:05:18 Cumulative 156.6 hours Start 2026.07.01 @ 21:34:13 End 2026.07.01 @ 21:38:49 Sessions 1 Manual Loads 0 Difficulty Rogue Special Mode None Game No. 393 Rogue 391 Adventurer 2 Explorer 0 Win Type - Total 3 Types 3/0/0/0/0/0/0/0/0/0 Lore% 81 Gallery% 61 Achievement% 46 Wizard Run 0 Options --------- Layout 2 ASCII 0 Keyboard 0 Movement Numpad Keybinds 0 Fullscreen 2 Font 24/Smallcaps Map View 50x44 Zoom Use 0% Tactical HUD 1 Map Filters NONE Filters NONE Steam 1 RUN: 36293e0e-5c25-4d84-8993-2465c193184e